fUSD/lending_fUSD_20240518
["ID","MTS","AMOUNT","RATE_DAILY","PERIOD"]
[327427569,1716072641218,-1225.0,0.00024119,2]
[327427570,1716072641228,-164.0,0.00024119,2]
[327427571,1716072641238,-809.0,0.00024119,2]
[327427572,1716072641247,-439.0,0.00024119,2]
[327427573,1716072641256,-612.0,0.00024119,2]
[327427574,1716072641265,-444.0,0.00024119,2]
[327427575,1716072641275,-150.0,0.00024119,2]
[327427576,1716072641286,-150.0,0.00024119,2]
[327427577,1716072641296,-1647.0,0.00024119,2]
[327427578,1716072641305,-1803.095,0.00024119,2]
[327427579,1716072641315,-215.0,0.00024119,2]
[327427580,1716072641324,-3159.0,0.00024119,2]
[327427581,1716072641333,-1137.0,0.00024119,2]
[327427582,1716072641342,-5754.0,0.00024119,2]
[327427583,1716072641352,-286.456,0.00024119,2]
[327427584,1716072641361,-5915.0,0.00024119,2]
[327427585,1716072641371,-884.849,0.00024119,2]
[327427586,1716072641380,-37862.0,0.00024119,2]
[327427587,1716072641391,-152.0,0.00024119,2]
[327427588,1716072641406,-299.452,0.00024119,2]
[327427589,1716072641415,-151.355,0.00024119,2]
[327427590,1716072641424,-157.051907,0.00024148,4]
[327427591,1716072641435,-161.72,0.00024243,2]
[327427592,1716072641446,-157.051907,0.00024348,2]
[327427593,1716072641456,-157.051907,0.00024448,4]
[327427594,1716072641465,-250.0,0.00024658,2]
[327427595,1716072641474,-1561.86172371,0.00024686,2]
[327427596,1716072641483,-330.1203,0.000247,2]
[327427597,1716072641493,-157.051907,0.00024748,2]
[327427598,1716072641502,-1612.56726,0.0002475,2]
[327427599,1716072641512,-272.53998866,0.00024751,2]
[327427600,1716072641523,-25144.61566091,0.0002476,2]
[327427601,1716072641532,-200.0,0.00024801,2]
[327427602,1716072641541,-200.0,0.00024801,2]
[327427603,1716072641551,-200.0,0.00024801,2]
[327427604,1716072641560,-1000.0,0.00024801,2]
[327427605,1716072641569,-1000.0,0.00024801,2]
[327427606,1716072641578,-500.0,0.00024801,2]
[327427607,1716072641587,-200.0,0.00024801,2]
[327427608,1716072641597,-30169.9002,0.00024876,2]
[327427609,1716072641606,-4445.60069734,0.00024889,2]
[327427610,1716072641616,-4445.60069733,0.00024889,2]
[327427611,1716072641625,-4445.60069733,0.00024889,2]
[327427612,1716072641634,-4445.60069733,0.00024889,2]
[327427613,1716072641644,-4445.60069733,0.00024889,2]
[327427614,1716072641653,-4445.60069733,0.00024889,2]
[327427615,1716072641663,-7172.091848,0.000249,2]
[327427616,1716072641672,-712.0,0.00024901,2]
[327427617,1716072641681,-156.93141146,0.00024922,2]
[327427618,1716072641689,-881.08282247,0.00024922,2]
[327427619,1716072641699,-2067.41781312,0.00024922,2]
[327427620,1716072641707,-20260.9917446,0.0002499,7]
[327427621,1716072641716,-321.0,0.00025,15]
[327427622,1716072641726,-163.3038312,0.00025001,2]
[327427623,1716072641735,-394.15242846,0.00025001,2]
[327427624,1716072641745,-150.01,0.00025001,2]
[327427625,1716072641756,-2160.59048514,0.00025001,2]
[327427626,1716072641766,-10700.32317022,0.00025002,2]
[327427627,1716072641775,-254.0301809,0.00025002,2]
[327427628,1716072641784,-5020.3052982,0.00025002,2]
[327427629,1716072641795,-6397.5880571,0.00025002,2]
[327427630,1716072641804,-2500.0,0.00025002,2]
[327427631,1716072641813,-8119.0,0.00025019,4]
[327427632,1716072641822,-1000.0,0.000251,2]
[327427633,1716072641831,-157.051907,0.00025148,6]
[327427634,1716072641841,-1612.56727,0.0002519,2]
[327427635,1716072641851,-154.0,0.000252,2]
[327427636,1716072641860,-193.018,0.000252,2]
[327427637,1716072641869,-150.0,0.000252,2]
[327427638,1716072641879,-150.0,0.000252,2]
[327427639,1716072641888,-150.0,0.000252,2]
[327427640,1716072641897,-150.0,0.000252,2]
[327427641,1716072641906,-150.095,0.000252,2]
[327427642,1716072641915,-4445.60069733,0.00025237,2]
[327427643,1716072641924,-157.051907,0.00025248,10]
[327427644,1716072641934,-157.051907,0.00025348,4]
[327427645,1716072641943,-277.0,0.000254,2]
[327427646,1716072641952,-692.8,0.00025413,7]
[327427647,1716072642095,-157.051907,0.00025448,6]
[327427648,1716072642104,-1000.0,0.000255,5]
[327427649,1716072642113,-1000.0,0.000255,5]
[327427650,1716072642123,-15570.07806602,0.00025509,2]
[327427651,1716072642132,-430.42,0.00025577,2]
[327427652,1716072642141,-157.051907,0.00025748,8]
[327427653,1716072642150,-164.74024366,0.00025776,2]
[327427654,1716072642159,-1612.56726,0.0002582,2]
[327427655,1716072642168,-1000.0,0.00026,6]
[327427656,1716072642178,-462.0,0.00026,5]
[327427657,1716072642187,-692.8,0.00026039,7]
[327427658,1716072642196,-15570.07806602,0.00026117,2]
[327427659,1716072642205,-157.051907,0.00026148,8]
[327427660,1716072642215,-209.0,0.0002617,2]
[327427661,1716072642224,-277.0,0.0002617,2]
[327427662,1716072642233,-157.051907,0.00026248,14]
[327427663,1716072642242,-1000.0,0.000263,6]
[327427664,1716072642251,-157.051907,0.00026348,12]
[327427665,1716072642260,-420.48,0.00026363,2]
[327427666,1716072642269,-1022.43,0.00026363,2]
[327427667,1716072642279,-150.0,0.00026363,2]
[327427668,1716072642288,-221.65,0.00026367,2]
[327427669,1716072642297,-150.0,0.00026367,2]
[327427670,1716072642306,-420.56,0.00026367,2]
[327427671,1716072642316,-1612.56727,0.0002644,2]
[327427672,1716072642326,-157.051907,0.00026448,10]
[327427673,1716072642335,-1000.0,0.000265,6]
[327427674,1716072642344,-819.4295,0.00026626,2]
[327427675,1716072642353,-528.8047,0.00026626,2]
[327427676,1716072642363,-8074.8189,0.00026626,2]
[327427677,1716072642372,-692.8,0.00026666,7]
[327427678,1716072642381,-15570.07806602,0.00026726,2]
[327427679,1716072642390,-157.051907,0.00026748,12]
[327427680,1716072642404,-2400.0,0.000269,9]
[327427681,1716072642413,-209.0,0.0002694,2]
[327427682,1716072642423,-277.0,0.0002694,2]
[327427683,1716072642432,-1000.0,0.00027,6]
[327427684,1716072642441,-1612.56727,0.0002707,2]
[327427685,1716072642451,-2159.0,0.00027119,2]
[327427686,1716072642460,-973.0,0.00027119,2]
[327427687,1716072642469,-544.0,0.00027119,2]
[327427688,1716072642477,-1642.0,0.00027119,2]
[327427689,1716072642487,-1262.0,0.00027119,2]
[327427690,1716072642496,-1225.0,0.00027119,2]
[327427691,1716072642505,-164.0,0.00027119,2]
[327427692,1716072642514,-809.0,0.00027119,2]
[327427693,1716072642523,-439.0,0.00027119,2]
[327427694,1716072642532,-612.0,0.00027119,2]
[327427695,1716072642542,-444.0,0.00027119,2]
[327427696,1716072642551,-150.0,0.00027119,2]
[327427697,1716072642560,-150.0,0.00027119,2]
[327427698,1716072642570,-1647.0,0.00027119,2]
[327427699,1716072642579,-215.0,0.00027119,2]
[327427700,1716072642588,-3159.0,0.00027119,2]
[327427701,1716072642597,-1137.0,0.00027119,2]
[327427702,1716072642606,-5754.0,0.00027119,2]
[327427703,1716072642615,-727.297,0.00027119,2]
[327427704,1716072642624,-25150.418,0.00027119,2]
[327427705,1716072642633,-157.051907,0.00027148,10]
[327427706,1716072642642,-420.56,0.00027189,2]
[327427707,1716072642651,-150.0,0.00027189,2]
[327427708,1716072642661,-420.32,0.00027189,2]
[327427709,1716072642670,-150.0,0.00027189,2]
[327427710,1716072642680,-157.051907,0.00027248,16]
[327427711,1716072642688,-692.8,0.00027292,7]
[327427712,1716072642698,-4445.60069733,0.00027293,2]
[327427713,1716072642707,-33236.8738,0.00027297,2]
[327427714,1716072642716,-100000.0,0.00027297,2]
[327427715,1716072642725,-1151.4965,0.00027297,2]
[327427716,1716072642735,-15570.07806602,0.00027335,2]
[327427717,1716072642744,-157.051907,0.00027348,18]
[327427718,1716072642754,-171.56325619,0.00027394,2]
[327427719,1716072642763,-204.44716233,0.00027395,2]
[327427720,1716072642772,-255.95458922,0.00027395,2]
[327427721,1716072642781,-196.37360908,0.00027395,2]
[327427722,1716072642792,-326.04893454,0.00027395,2]
[327427723,1716072642801,-155.0,0.00027395,2]
[327427724,1716072642810,-263.0103991,0.00027395,2]
[327427725,1716072642820,-260.52593921,0.00027395,2]
[327427726,1716072642829,-3079.97215406,0.00027395,2]
[327427727,1716072642838,-158.81537813,0.00027395,2]
[327427728,1716072642848,-1532.67439124,0.00027395,2]
[327427729,1716072642858,-156.26918012,0.00027395,2]
[327427730,1716072642867,-393.0610253,0.00027395,2]
[327427731,1716072642877,-196.37581851,0.00027395,2]
[327427732,1716072642887,-155.0,0.00027395,2]
[327427733,1716072642897,-309.60510547,0.00027395,2]
[327427734,1716072642907,-286.67348432,0.00027395,2]
[327427735,1716072642916,-184.8662877,0.00027395,2]
[327427736,1716072642927,-236.70245155,0.00027395,2]
[327427737,1716072642937,-157.0188053,0.00027395,2]
[327427738,1716072642947,-156.15078988,0.00027395,2]
[327427739,1716072642957,-155.0,0.00027395,2]
[327427740,1716072642966,-622.01146866,0.00027395,2]
[327427741,1716072642975,-226.65825705,0.00027395,2]
[327427742,1716072642985,-317.63013013,0.00027395,2]
[327427743,1716072642995,-155.61637897,0.00027395,2]
[327427744,1716072643004,-155.96751744,0.00027395,2]
[327427746,1716072643014,-453.58845194,0.00027395,2]
[327427747,1716072643024,-887.34537112,0.00027395,2]
[327427748,1716072643033,-261.55411948,0.00027395,2]
[327427749,1716072643044,-2361.52496939,0.00027396,2]
[327427750,1716072643054,-127551.80111332,0.00027396,2]
[327427751,1716072643063,-150.0,0.00027396,2]
[327427752,1716072643073,-500.0,0.00027397,2]
[327427753,1716072643082,-503.24134299,0.00027397,2]
[327427755,1716072643091,-500.0,0.00027397,2]
[327427757,1716072643100,-509.10131862,0.00027397,2]
[327427759,1716072643110,-500.0,0.00027397,2]
[327427761,1716072643120,-500.0,0.00027397,2]
[327427763,1716072643130,-507.04965098,0.00027397,2]
[327427765,1716072643140,-500.0,0.00027397,2]
[327427767,1716072643150,-500.0,0.00027397,2]
[327427768,1716072643161,-500.0,0.00027397,2]
[327427769,1716072643170,-500.0,0.00027397,2]
[327427771,1716072643179,-505.96087738,0.00027397,2]
[327427772,1716072643189,-501.28211733,0.00027397,2]
[327427773,1716072643198,-500.0,0.00027397,2]
[327427774,1716072643207,-500.0,0.00027397,2]
[327427775,1716072643217,-500.0,0.00027397,2]
[327427776,1716072643227,-500.0,0.00027397,2]
[327427777,1716072643236,-500.0,0.00027397,2]
[327427778,1716072643246,-500.0,0.00027397,2]
[327427779,1716072643255,-514.48276063,0.00027397,2]
[327427780,1716072643264,-503.93691117,0.00027397,2]
[327427783,1716072643273,-438.1921948,0.00027397,2]
[327427784,1716072643283,-200.0,0.00027397,2]
[327427785,1716072643292,-500.0,0.00027397,2]
[327427786,1716072643301,-500.0,0.00027397,2]
[327427787,1716072643311,-500.0,0.00027397,2]
[327427788,1716072643321,-854.48,0.00027397,2]
[327427789,1716072643331,-500.0,0.00027397,2]
[327427790,1716072643341,-500.0,0.00027397,2]
[327427791,1716072643350,-500.0,0.00027397,2]
[327427792,1716072643360,-500.0,0.00027397,2]
[327427793,1716072643369,-500.0,0.00027397,2]
[327427794,1716072643379,-500.0,0.00027397,2]
[327427795,1716072643388,-500.0,0.00027397,2]
[327427796,1716072643402,-500.0,0.00027397,2]
[327427797,1716072643412,-722.84,0.00027397,2]
[327427798,1716072643421,-500.0,0.00027397,2]
[327427799,1716072643431,-500.0,0.00027397,2]
[327427800,1716072643441,-500.0,0.00027397,2]
[327427801,1716072643450,-500.0,0.00027397,2]
[327427802,1716072643460,-500.0,0.00027397,2]
[327427803,1716072643470,-552.53,0.00027397,2]
[327427804,1716072643481,-500.0,0.00027397,2]
[327427805,1716072643492,-749.24,0.00027397,2]
[327427806,1716072643502,-404.18174349,0.00027397,2]
[327427807,1716072643512,-550.07,0.00027397,2]
[327427808,1716072643522,-500.0,0.00027397,2]
[327427809,1716072643531,-763.94,0.00027397,2]
[327427810,1716072643541,-500.0,0.00027397,2]
[327427811,1716072643550,-500.0,0.00027397,2]
[327427812,1716072643560,-500.0,0.00027397,2]
[327427813,1716072643569,-500.0,0.00027397,2]
[327427814,1716072643579,-931.54,0.00027397,2]
[327427815,1716072643589,-500.0,0.00027397,2]
[327427816,1716072643598,-1254.54,0.00027397,2]
[327427817,1716072643607,-500.0,0.00027397,2]
[327427818,1716072643617,-500.0,0.00027397,2]
[327427819,1716072643626,-545.32,0.00027397,2]
[327427820,1716072643635,-500.0,0.00027397,2]
[327427821,1716072643644,-500.0,0.00027397,2]
[327427822,1716072643653,-500.0,0.00027397,2]
[327427823,1716072643662,-500.0,0.00027397,2]
[327427824,1716072643672,-500.0,0.00027397,2]
[327427825,1716072643681,-500.0,0.00027397,2]
[327427826,1716072643690,-500.0,0.00027397,2]
[327427827,1716072643699,-500.0,0.00027397,2]
[327427828,1716072643709,-500.0,0.00027397,2]
[327427829,1716072643718,-500.0,0.00027397,2]
[327427831,1716072643727,-500.0,0.00027397,2]
[327427833,1716072643736,-964.74,0.00027397,2]
[327427835,1716072643746,-500.0,0.00027397,2]
[327427837,1716072643758,-500.0,0.00027397,2]
[327427839,1716072643768,-500.0,0.00027397,2]
[327427841,1716072643777,-500.0,0.00027397,2]
[327427843,1716072643786,-500.0,0.00027397,2]
[327427845,1716072643797,-1304.69,0.00027397,2]
[327427847,1716072643806,-500.0,0.00027397,2]
[327427849,1716072643816,-1394.33,0.00027397,2]
[327427851,1716072643826,-500.0,0.00027397,2]
[327427853,1716072643835,-500.0,0.00027397,2]
[327427855,1716072643845,-500.0,0.00027397,2]
[327427857,1716072643854,-500.0,0.00027397,2]
[327427859,1716072643864,-500.0,0.00027397,2]
[327427862,1716072643874,-500.0,0.00027397,2]
[327427863,1716072643883,-1176.76,0.00027397,2]
[327427866,1716072643893,-500.0,0.00027397,2]
[327427868,1716072643902,-500.0,0.00027397,2]
[327427870,1716072643911,-305.04889214,0.00027397,2]
[327427871,1716072643920,-500.0,0.00027397,2]
[327427874,1716072643930,-500.0,0.00027397,2]
[327427875,1716072643939,-535.71319929,0.00027397,2]
[327427878,1716072643949,-523.60368516,0.00027397,2]
[327427879,1716072643958,-500.0,0.00027397,2]
[327427891,1716072644090,-500.0,0.00027397,2]
[327427892,1716072644100,-500.0,0.00027397,2]
[327427893,1716072644110,-500.0,0.00027397,2]
[327427894,1716072644120,-500.0,0.00027397,2]
[327427895,1716072644129,-500.0,0.00027397,2]
[327427896,1716072644139,-500.0,0.00027397,2]
[327427897,1716072644148,-513.72725045,0.00027397,2]
[327427898,1716072644158,-500.0,0.00027397,2]
[327427899,1716072644167,-572.05,0.00027397,2]
[327427900,1716072644177,-500.0,0.00027397,2]
[327427901,1716072644187,-500.0,0.00027397,2]
[327427902,1716072644196,-1239.33,0.00027397,2]
[327427903,1716072644205,-661.91,0.00027397,2]
[327427904,1716072644215,-500.0,0.00027397,2]
[327427905,1716072644226,-500.0,0.00027397,2]
[327427906,1716072644235,-500.0,0.00027397,2]
[327427907,1716072644244,-500.0,0.00027397,2]
[327427908,1716072644254,-500.0,0.00027397,2]
[327427909,1716072644263,-157.25995516,0.00027397,2]
[327427910,1716072644272,-151.0,0.00027397,7]
[327427911,1716072644282,-500.0,0.00027397,2]
[327427912,1716072644291,-500.0,0.00027397,2]
[327427913,1716072644300,-500.0,0.00027397,2]
[327427914,1716072644310,-500.0,0.00027397,2]
[327427915,1716072644320,-680.23,0.00027397,2]
[327427916,1716072644329,-500.0,0.00027397,2]
[327427917,1716072644340,-500.0,0.00027397,2]
[327427918,1716072644349,-500.0,0.00027397,2]
[327427919,1716072644358,-500.0,0.00027397,2]
[327427920,1716072644367,-1000.47,0.00027397,2]
[327427921,1716072644377,-500.0,0.00027397,2]
[327427922,1716072644386,-605.84,0.00027397,2]
[327427923,1716072644397,-500.0,0.00027397,2]
[327427924,1716072644408,-500.0,0.00027397,2]
[327427925,1716072644418,-790.21,0.00027397,2]
[327427926,1716072644430,-765.58,0.00027397,2]
[327427927,1716072644440,-1223.78,0.00027397,2]
[327427928,1716072644451,-500.0,0.00027397,2]
[327427929,1716072644460,-1056.08,0.00027397,2]
[327427930,1716072644470,-534.55,0.00027397,2]
[327427931,1716072644479,-678.81,0.00027397,2]
[327427932,1716072644489,-500.0,0.00027397,2]
[327427933,1716072644499,-500.0,0.00027397,2]
[327427934,1716072644509,-812.38,0.00027397,2]
[327427935,1716072644518,-151.0,0.00027397,7]
[327427936,1716072644527,-500.0,0.00027397,2]
[327427937,1716072644536,-582.36,0.00027397,2]
[327427938,1716072644547,-500.0,0.00027397,2]
[327427939,1716072644557,-1653.59,0.00027397,2]
[327427940,1716072644566,-500.0,0.00027397,2]
[327427941,1716072644577,-151.0,0.00027397,7]
[327427942,1716072644587,-1175.58,0.00027397,2]
[327427943,1716072644596,-500.0,0.00027397,2]
[327427944,1716072644606,-286.27291,0.00027397,7]
[327427945,1716072644615,-1017.72,0.00027397,2]
[327427946,1716072644625,-500.0,0.00027397,2]
[327427947,1716072644634,-500.0,0.00027397,2]
[327427948,1716072644644,-1143.15,0.00027397,2]
[327427949,1716072644654,-500.0,0.00027397,2]
[327427950,1716072644663,-432.94304203,0.00027397,2]
[327427951,1716072644672,-831.82,0.00027397,2]
[327427952,1716072644682,-500.0,0.00027397,2]
[327427953,1716072644691,-151.0,0.00027397,7]
[327427954,1716072644701,-802.37,0.00027397,2]
[327427955,1716072644711,-151.0,0.00027397,7]
[327427956,1716072644721,-500.0,0.00027397,2]
[327427957,1716072644730,-800.26,0.00027397,2]
[327427958,1716072644740,-155.0,0.00027397,2]
[327427959,1716072644749,-500.0,0.00027397,2]
[327427960,1716072644758,-151.0,0.00027397,7]
[327427961,1716072644768,-1028.52,0.00027397,2]
[327427962,1716072644777,-500.0,0.00027397,2]
[327427963,1716072644787,-500.0,0.00027397,2]
[327427964,1716072644796,-726.12,0.00027397,2]
[327427965,1716072644806,-1012.59,0.00027397,2]
[327427966,1716072644815,-500.0,0.00027397,2]
[327427967,1716072644825,-708.72,0.00027397,2]
[327427968,1716072644834,-984.97,0.00027397,2]
[327427969,1716072644844,-500.0,0.00027397,2]
[327427970,1716072644853,-825.63,0.00027397,2]
[327427971,1716072644863,-500.0,0.00027397,2]
[327427972,1716072644872,-500.0,0.00027397,2]
[327427973,1716072644882,-500.0,0.00027397,2]
[327427974,1716072644891,-500.0,0.00027397,2]
[327427975,1716072644900,-500.0,0.00027397,2]
[327427976,1716072644909,-500.0,0.00027397,2]
[327427977,1716072644919,-514.06832646,0.00027397,2]
[327427978,1716072644928,-1274.28,0.00027397,2]
[327427979,1716072644938,-500.0,0.00027397,2]
[327427980,1716072644947,-500.0,0.00027397,2]
[327427981,1716072644956,-500.0,0.00027397,2]
[327427982,1716072644966,-500.0,0.00027397,2]
[327427983,1716072644975,-491.70521076,0.00027397,2]
[327427984,1716072644985,-500.0,0.00027397,2]
[327427985,1716072644995,-551.19,0.00027397,2]
[327427986,1716072645004,-500.0,0.00027397,2]
[327427987,1716072645013,-500.0,0.00027397,2]
[327427988,1716072645023,-706.32,0.00027397,2]
[327427989,1716072645032,-500.0,0.00027397,2]
[327427990,1716072645041,-500.0,0.00027397,2]
[327427991,1716072645051,-500.0,0.00027397,2]
[327427992,1716072645060,-500.0,0.00027397,2]
[327427993,1716072645069,-806.78,0.00027397,2]
[327427994,1716072645079,-500.0,0.00027397,2]
[327427995,1716072645088,-1763.56,0.00027397,2]
[327427996,1716072645097,-151.0,0.00027397,7]
[327427997,1716072645106,-500.0,0.00027397,2]
[327427998,1716072645116,-508.42127304,0.00027397,2]
[327427999,1716072645125,-151.0,0.00027397,7]
[327428000,1716072645135,-756.43,0.00027397,2]
[327428001,1716072645144,-151.0,0.00027397,7]
[327428002,1716072645153,-812.94,0.00027397,2]
[327428003,1716072645162,-530.94174419,0.00027397,2]
[327428004,1716072645172,-154.119388,0.00027397,7]
[327428005,1716072645181,-500.0,0.00027397,2]
[327428006,1716072645191,-510.55955176,0.00027397,2]
[327428007,1716072645200,-500.0,0.00027397,2]
[327428008,1716072645210,-500.0,0.00027397,2]
[327428009,1716072645219,-500.0,0.00027397,2]
[327428010,1716072645228,-151.0,0.00027397,7]
[327428011,1716072645238,-500.0,0.00027397,2]
[327428012,1716072645247,-500.0,0.00027397,2]
[327428013,1716072645256,-500.0,0.00027397,2]
[327428014,1716072645266,-500.0,0.00027397,2]
[327428015,1716072645275,-500.0,0.00027397,2]
[327428016,1716072645284,-1640.62,0.00027397,2]
[327428017,1716072645294,-500.0,0.00027397,2]
[327428018,1716072645303,-919.67,0.00027397,2]
[327428019,1716072645312,-994.59,0.00027397,2]
[327428020,1716072645322,-500.0,0.00027397,2]
[327428021,1716072645331,-508.72,0.00027397,2]
[327428022,1716072645340,-151.0,0.00027397,7]
[327428023,1716072645349,-500.0,0.00027397,2]
[327428024,1716072645358,-1278.05,0.00027397,2]
[327428025,1716072645367,-500.0,0.00027397,2]
[327428026,1716072645377,-500.0,0.00027397,2]
[327428027,1716072645386,-500.0,0.00027397,2]
[327428028,1716072645396,-500.0,0.00027397,2]
[327428029,1716072645409,-500.0,0.00027397,2]
[327428030,1716072645420,-500.0,0.00027397,2]
[327428031,1716072645430,-500.0,0.00027397,2]
[327428032,1716072645440,-538.29,0.00027397,2]
[327428033,1716072645450,-500.0,0.00027397,2]
[327428034,1716072645460,-500.0,0.00027397,2]
[327428035,1716072645468,-500.0,0.00027397,2]
[327428036,1716072645479,-878.16,0.00027397,2]
[327428037,1716072645489,-500.0,0.00027397,2]
[327428038,1716072645498,-1193.14,0.00027397,2]
[327428039,1716072645507,-500.0,0.00027397,2]
[327428040,1716072645518,-500.0,0.00027397,2]
[327428041,1716072645528,-500.0,0.00027397,2]
[327428042,1716072645538,-500.0,0.00027397,2]
[327428043,1716072645547,-500.0,0.00027397,2]
[327428044,1716072645556,-500.0,0.00027397,2]
[327428045,1716072645565,-500.0,0.00027397,2]
[327428046,1716072645575,-511.86,0.00027397,2]
[327428047,1716072645584,-525.09249059,0.00027397,2]
[327428048,1716072645593,-500.0,0.00027397,2]
[327428049,1716072645602,-500.0,0.00027397,2]
[327428050,1716072645611,-500.0,0.00027397,2]
[327428051,1716072645620,-629.56,0.00027397,2]
[327428052,1716072645629,-500.0,0.00027397,2]
[327428053,1716072645638,-500.0,0.00027397,2]
[327428054,1716072645648,-500.0,0.00027397,2]
[327428055,1716072645657,-500.0,0.00027397,2]
[327428056,1716072645666,-701.29,0.00027397,2]
[327428057,1716072645675,-500.0,0.00027397,2]
[327428058,1716072645684,-1465.44,0.00027397,2]
[327428059,1716072645693,-500.0,0.00027397,2]
[327428060,1716072645702,-500.0,0.00027397,2]
[327428061,1716072645712,-151.0,0.00027397,7]
[327428062,1716072645722,-500.0,0.00027397,2]
[327428063,1716072645731,-737.76,0.00027397,2]
[327428064,1716072645740,-500.0,0.00027397,2]
[327428065,1716072645750,-500.0,0.00027397,2]
[327428066,1716072645759,-500.0,0.00027397,2]
[327428067,1716072645769,-500.0,0.00027397,2]
[327428068,1716072645778,-545.55,0.00027397,2]
[327428069,1716072645788,-535.86,0.00027397,2]
[327428070,1716072645798,-664.25,0.00027397,2]
[327428071,1716072645807,-500.0,0.00027397,2]
[327428072,1716072645816,-500.0,0.00027397,2]
[327428073,1716072645946,-500.0,0.00027397,2]
[327428074,1716072645956,-504.54573424,0.00027397,2]
[327428075,1716072645966,-676.12,0.00027397,2]
[327428076,1716072645976,-500.54609934,0.00027397,2]
[327428077,1716072645985,-500.0,0.00027397,2]
[327428078,1716072645995,-500.0,0.00027397,2]
[327428079,1716072646004,-500.0,0.00027397,2]
[327428080,1716072646014,-1116.91,0.00027397,2]
[327428081,1716072646023,-500.0,0.00027397,2]
[327428082,1716072646033,-500.0,0.00027397,2]
[327428083,1716072646042,-501.98554065,0.00027397,2]
[327428084,1716072646053,-500.0,0.00027397,2]
[327428085,1716072646063,-1468.41,0.00027397,2]
[327428086,1716072646072,-500.0,0.00027397,2]
[327428087,1716072646082,-500.0,0.00027397,2]
[327428088,1716072646091,-500.0,0.00027397,2]
[327428089,1716072646101,-500.0,0.00027397,2]
[327428090,1716072646110,-500.0,0.00027397,2]
[327428091,1716072646120,-500.0,0.00027397,2]
[327428092,1716072646129,-500.0,0.00027397,2]
[327428093,1716072646139,-500.0,0.00027397,2]
[327428094,1716072646148,-513.46550913,0.00027397,2]
[327428095,1716072646158,-500.0,0.00027397,2]
[327428096,1716072646167,-500.0,0.00027397,2]
[327428097,1716072646176,-151.0,0.00027397,7]
[327428098,1716072646186,-1503.59,0.00027397,2]
[327428099,1716072646195,-1716.09,0.00027397,2]
[327428100,1716072646204,-545.83977176,0.00027397,2]
[327428101,1716072646214,-500.0,0.00027397,2]
[327428102,1716072646223,-2119.81,0.00027397,2]
[327428103,1716072646232,-500.0,0.00027397,2]
[327428104,1716072646241,-608.62,0.00027397,2]
[327428105,1716072646251,-500.0,0.00027397,2]
[327428106,1716072646260,-151.0,0.00027397,7]
[327428107,1716072646270,-500.0,0.00027397,2]
[327428108,1716072646279,-585.6,0.00027397,2]
[327428109,1716072646288,-500.0,0.00027397,2]
[327428110,1716072646298,-151.0,0.00027397,7]
[327428111,1716072646307,-1723.61,0.00027397,2]
[327428112,1716072646316,-502.21764402,0.00027397,2]
[327428113,1716072646325,-500.0,0.00027397,2]
[327428114,1716072646335,-673.21,0.00027397,2]
[327428115,1716072646344,-1064.38,0.00027397,2]